bitfinex/quotes_SOLUSD_20220116
["timestamp","ask_amount","ask_price","bid_price","bid_amount"]
[1642361666366,3.84063141,148.47,148.39,47.63783052]
[1642361666565,7.20283651,148.46,148.39,47.63783052]
[1642361667066,7.45283651,148.46,148.39,47.63783052]
[1642361667265,17.56153651,148.46,148.39,47.63783052]
[1642361667665,17.56153651,148.46,148.35,8.08]
[1642361667865,25.26231239,148.46,148.35,8.08]
[1642361668465,23.6869,148.45,148.35,8.08]
[1642361668667,10.1114,148.42,148.36,48.44172354]
[1642361668866,47.572154,148.42,148.36,48.44172354]
[1642361669364,10.3614,148.42,148.36,48.69172354]
[1642361669565,10.3614,148.42,148.36,48.44172354]
[1642361670067,10.3614,148.42,148.36,48.69172354]
[1642361670267,57.56418857,148.42,148.36,48.44172354]
[1642361673370,57.56418857,148.42,148.33,31.4769]
[1642361673571,65.89418857,148.42,148.33,23.3969]
[1642361673975,65.89418857,148.42,148.33,23.6469]
[1642361674173,71.89418857,148.42,148.33,23.3969]
[1642361674374,71.89418857,148.42,148.34,48.34194676]
[1642361678789,71.89418857,148.42,148.31,8.08]
[1642361678984,7.0297033,148.41,148.28,8.08]
[1642361679186,10.1175,148.37,148.26,9.9487]
[1642361679385,24.4493,148.36,148.27,22.9419]
[1642361679785,4.08064159,148.35,148.27,61.8657938]
[1642361680185,4.33064159,148.35,148.27,61.8657938]
[1642361680387,4.33064159,148.35,148.24,26.46520075]
[1642361680388,10.1173,148.34,148.24,26.46520075]
[1642361680587,16.2343,148.34,148.23,0.33718327]
[1642361680787,16.4843,148.34,148.23,0.33718327]
[1642361681186,24.5643,148.34,148.23,0.33718327]
[1642361681389,48.9403,148.34,148.22,1.75310395]
[1642361682788,1.45366783,148.31,148.21,72.21582914]
[1642361682987,47.00162134,148.3,148.21,72.21582914]
[1642361683216,4.28180882,148.27,148.21,72.21582914]
[1642361683416,4.53180882,148.27,148.21,22.6416]
[1642361684417,4.53180882,148.27,148.22,47.32879035]
[1642361684619,10.1195,148.3,148.22,47.32879035]
[1642361684822,24.376,148.34,148.22,47.32879035]
[1642361685019,8.08,148.37,148.22,47.32879035]
[1642361685421,8.08,148.37,148.22,47.57879035]
[1642361685622,36.68905149,148.34,148.23,24.1207]
[1642361685822,36.68905149,148.34,148.23,24.3707]
[1642361686523,46.80635149,148.34,148.23,24.3707]
[1642361686722,52.80635149,148.34,148.23,24.3707]
[1642361687323,53.05635149,148.34,148.23,24.3707]
[1642361692528,6.0,148.34,148.24,8.08]
[1642361692728,67.369,148.4,148.24,14.08]
[1642361692928,33.9,148.4,148.25,47.1682]
[1642361693127,0.25,148.4,148.26,75.25]
[1642361693327,0.25,148.4,148.27,22.6456]
[1642361693626,0.25,148.4,148.27,53.31337949]
[1642361693627,42.88617755,148.4,148.27,53.31337949]
[1642361693832,23.4343,148.39,148.27,59.56337949]
[1642361694231,23.6843,148.39,148.27,59.56337949]
[1642361694527,29.6843,148.39,148.27,59.56337949]
[1642361695128,29.6843,148.39,148.27,126.73337949]
[1642361696433,29.6843,148.39,148.32,0.059672]
[1642361697731,33.7982,148.39,148.32,0.059672]
[1642361699232,1.70077588,148.38,148.32,0.059672]
[1642361699436,18.76395261,148.37,148.32,0.059672]
[1642361699632,86.18395261,148.37,148.32,0.059672]
[1642361699835,92.18395261,148.37,148.32,0.059672]
[1642361700032,93.88472849,148.37,148.32,0.059672]
[1642361701135,26.71472849,148.37,148.32,0.059672]
[1642361702334,93.88472849,148.37,148.32,0.059672]
[1642361707141,101.96472849,148.37,148.32,0.059672]
[1642361707642,34.79472849,148.37,148.32,0.059672]
[1642361708442,101.96472849,148.37,148.32,0.059672]
[1642361708642,24.1967,148.37,148.32,0.059672]
[1642361708841,25.13507588,148.39,148.32,5.934672]
[1642361709043,8.08,148.44,148.32,5.934672]
[1642361709767,46.62316623,148.43,148.33,22.81925514]
[1642361709964,56.73426623,148.43,148.33,23.06925514]
[1642361710366,3.74855474,148.42,148.33,23.06925514]
[1642361710965,3.99855474,148.42,148.33,23.06925514]
[1642361711469,3.74855474,148.42,148.33,23.06925514]
[1642361711867,13.86025474,148.42,148.33,23.06925514]
[1642361712068,10.1117,148.42,148.33,23.06925514]
[1642361712868,10.3617,148.42,148.33,23.06925514]
[1642361713671,16.3617,148.42,148.33,23.06925514]
[1642361714070,6.25,148.42,148.33,23.06925514]
[1642361714470,0.25,148.42,148.33,23.06925514]
[1642361714674,7.03320292,148.43,148.33,31.14925514]
[1642361714870,0.25,148.43,148.33,36.57025514]
[1642361715272,0.25,148.43,148.34,24.2524]
[1642361715472,0.25,148.43,148.34,34.6107]
[1642361715873,56.02063793,148.46,148.34,34.6107]
[1642361717878,51.91163793,148.46,148.34,101.7807]
[1642361718480,51.66163793,148.46,148.34,101.7807]
[1642361719283,45.66163793,148.46,148.34,101.7807]
[1642361719683,45.66163793,148.46,148.34,107.7807]
[1642361719985,45.91163793,148.46,148.34,107.7807]
[1642361720383,45.66163793,148.46,148.34,107.7807]
[1642361720612,10.1082,148.47,148.34,107.7807]
[1642361721284,10.1082,148.47,148.34,40.6107]
[1642361721487,47.14616734,148.46,148.34,40.6107]
[1642361721785,57.25526734,148.46,148.34,48.6907]
[1642361721987,57.50526734,148.46,148.34,48.6907]
[1642361722591,0.25,148.46,148.34,48.6907]
[1642361722788,10.1077,148.48,148.34,48.6907]
[1642361722987,0.25,148.47,148.34,48.6907]
[1642361723186,0.25,148.47,148.34,115.8607]
[1642361723587,48.1062658,148.47,148.34,115.8607]
[1642361724489,48.1062658,148.47,148.34,48.6907]
[1642361724687,64.2145658,148.47,148.34,48.6907]
[1642361725389,64.2145658,148.47,148.34,42.6907]
[1642361725587,64.2145658,148.47,148.34,42.4407]
[1642361725887,64.2145658,148.47,148.34,32.3324]
[1642361726087,155.76094168,148.47,148.34,32.3324]
[1642361726687,155.76094168,148.47,148.34,24.2524]
[1642361726891,8.08,148.46,148.34,24.5024]
[1642361727089,67.17,148.45,148.34,24.5024]
[1642361727288,3.42716436,148.42,148.34,24.5024]
[1642361727690,3.67716436,148.42,148.34,24.5024]
[1642361730593,13.78876436,148.42,148.34,24.5024]
[1642361730992,19.78876436,148.42,148.34,24.5024]
[1642361731192,19.78876436,148.42,148.34,24.2524]
[1642361731692,26.82402398,148.42,148.34,24.2524]
[1642361732093,26.82402398,148.42,148.34,67.01012635]
[1642361732295,26.82402398,148.42,148.34,67.26012635]
[1642361732493,19.78876436,148.42,148.34,67.26012635]
[1642361732695,9.42716436,148.42,148.34,67.26012635]
[1642361732896,3.42716436,148.42,148.34,67.26012635]
[1642361733297,3.67716436,148.42,148.34,67.01012635]
[1642361733496,3.67716436,148.42,148.34,67.26012635]
[1642361733696,3.67716436,148.42,148.34,67.01012635]
[1642361733905,3.67716436,148.42,148.34,67.26012635]
[1642361734708,9.67716436,148.42,148.34,67.26012635]
[1642361738542,19.78866436,148.42,148.34,67.26012635]
[1642361746453,19.28866436,148.42,148.34,67.26012635]
[1642361747577,19.28866436,148.42,148.34,24.2524]
[1642361748682,19.28866436,148.42,148.34,60.1833165]
[1642361748878,19.28866436,148.42,148.34,60.4333165]
[1642361749178,18.78866436,148.42,148.34,60.4333165]
[1642361751778,18.78866436,148.42,148.34,24.5024]
[1642361757085,18.53866436,148.42,148.34,24.5024]
[1642361757284,18.53866436,148.42,148.34,24.2524]
[1642361757885,18.53866436,148.42,148.34,24.5024]
[1642361758485,18.78866436,148.42,148.34,24.5024]
[1642361759684,20.48944024,148.42,148.34,24.5024]
[1642361759885,20.48944024,148.42,148.34,24.2524]
[1642361760486,87.65944024,148.42,148.32,0.059672]
[1642361760689,110.47344024,148.42,148.32,0.059672]
[1642361761392,43.30344024,148.42,148.32,0.059672]
[1642361761586,10.1142,148.39,148.32,40.48005625]
[1642361761789,42.58194987,148.38,148.32,40.48005625]
[1642361762088,42.58194987,148.38,148.32,40.73005625]
[1642361762289,42.83194987,148.38,148.32,40.73005625]
[1642361762894,42.83194987,148.38,148.32,0.309672]
[1642361763095,42.83194987,148.38,148.32,0.059672]
[1642361763397,52.94614987,148.38,148.32,0.059672]
[1642361764001,58.94614987,148.38,148.32,0.059672]
[1642361766102,11.25926813,148.37,148.32,0.059672]
[1642361766505,11.50926813,148.37,148.32,0.059672]
[1642361768701,11.25926813,148.37,148.32,0.059672]
[1642361769704,11.50926813,148.37,148.32,0.059672]
[1642361770103,11.25926813,148.37,148.32,0.059672]
[1642361770305,11.50926813,148.37,148.32,0.059672]
[1642361771306,17.50926813,148.37,148.32,0.059672]
[1642361772508,11.50926813,148.37,148.32,0.059672]
[1642361778415,17.50926813,148.37,148.32,0.059672]
[1642361781145,11.50926813,148.37,148.32,0.059672]
[1642361784952,17.50926813,148.37,148.32,0.059672]
[1642361790563,19.21004401,148.37,148.32,0.059672]
[1642361792565,10.1164,148.35,148.32,0.059672]
[1642361792965,10.3664,148.35,148.32,0.059672]
[1642361793365,7.70148029,148.34,148.32,0.059672]
[1642361793566,14.80648029,148.34,148.32,0.059672]
[1642361793767,7.355,148.34,148.32,0.059672]
[1642361794566,17.4721,148.34,148.32,0.059672]
[1642361795967,23.4721,148.34,148.32,0.059672]
[1642361801192,17.4721,148.34,148.32,0.059672]
[1642361801493,10.3671,148.34,148.32,0.059672]
[1642361801693,12.28808962,148.34,148.32,0.059672]
[1642361803496,12.28808962,148.34,148.32,6.1209979]
[1642361803793,12.28808962,148.34,148.32,30.04459024]
[1642361804394,2.17098962,148.34,148.32,6.1209979]
[1642361804693,2.17098962,148.34,148.32,3.08879793]
[1642361805396,2.17098962,148.34,148.32,0.059672]
[1642361807900,2.17098962,148.34,148.33,6.0613259]
[1642361808099,0.25,148.34,148.33,6.0613259]
[1642361809503,0.25,148.34,148.32,25.91879595]
[1642361809702,56.58697187,148.36,148.32,25.91879595]
[1642361809903,16.3658,148.36,148.32,25.91879595]
[1642361811008,52.68494041,148.36,148.32,25.91879595]
[1642361811809,16.3658,148.36,148.32,25.91879595]
[1642361813512,16.3658,148.36,148.32,0.059672]
[1642361813709,41.1452,148.36,148.32,0.059672]
[1642361814411,4.84503355,148.37,148.32,0.059672]
[1642361814610,3.70096542,148.36,148.32,0.059672]
[1642361815012,3.95096542,148.36,148.32,0.059672]
[1642361815511,0.25,148.36,148.32,0.059672]
[1642361816412,5.09503355,148.37,148.32,0.059672]
[1642361817011,1.39406813,148.37,148.32,0.059672]
[1642361818714,7.39406813,148.37,148.32,0.059672]
[1642361818916,1.39406813,148.37,148.32,0.059672]
[1642361820017,5.09503355,148.37,148.32,0.059672]
[1642361823423,1.92195306,148.34,148.32,0.059672]
[1642361823629,1.92195306,148.34,148.33,46.0613259]
[1642361824027,1.92195306,148.35,148.33,85.77027975]
[1642361825031,1.92195306,148.36,148.33,85.77027975]
[1642361825231,1.92195306,148.36,148.33,86.02027975]
[1642361826854,1.92195306,148.38,148.33,46.02027975]
[1642361827251,7.92195306,148.38,148.33,46.02027975]
[1642361828959,7.92195306,148.38,148.34,67.17]
[1642361829156,7.92195306,148.38,148.33,113.19027975]
[1642361829356,7.92195306,148.38,148.33,46.02027975]
[1642361830058,6.0,148.38,148.33,46.02027975]
[1642361830258,6.0,148.38,148.33,113.19027975]
[1642361830460,1.92195306,148.4,148.33,113.19027975]
[1642361830658,1.92195306,148.4,148.34,24.9188]
[1642361830958,1.92195306,148.4,148.34,25.1688]
[1642361831161,7.92195306,148.4,148.34,25.1688]
[1642361831858,1.92195306,148.4,148.35,67.17]
[1642361832057,1.92195306,148.4,148.34,92.3388]
[1642361833967,1.92195306,148.4,148.34,98.3388]
[1642361834172,1.92195306,148.41,148.34,98.3388]
[1642361836371,14.09190544,148.41,148.34,98.3388]
[1642361836672,1.92195306,148.41,148.34,98.3388]
[1642361838374,1.92195306,148.41,148.34,106.4188]
[1642361838976,1.92195306,148.41,148.34,106.1688]
[1642361839375,12.49327874,148.4,148.34,106.1688]
[1642361839575,12.49327874,148.4,148.34,38.9988]
[1642361839874,12.74327874,148.4,148.34,38.9988]
[1642361840074,6.25,148.4,148.34,38.9988]
[1642361840475,0.25,148.4,148.34,32.9988]
[1642361840675,2.17195306,148.4,148.34,32.9988]
[1642361843377,1.92195306,148.4,148.34,33.2488]
[1642361844177,1.92195306,148.4,148.34,32.9988]
[1642361844676,1.92195306,148.4,148.34,33.2488]
[1642361844876,2.17195306,148.4,148.34,33.2488]
[1642361847578,2.17195306,148.4,148.34,100.4188]
[1642361847980,1.92195306,148.39,148.34,100.4188]
[1642361849082,1.92195306,148.39,148.34,33.2488]
[1642361853212,2.17195306,148.39,148.34,32.9988]
[1642361854415,1.92195306,148.38,148.34,32.9988]
[1642361857418,1.92195306,148.38,148.34,33.2488]
[1642361857619,1.92195306,148.37,148.34,33.2488]
[1642361857818,1.92195306,148.37,148.35,6.0613259]
[1642361858021,1.92195306,148.37,148.36,31.20761599]
[1642361858419,1.92195306,148.38,148.36,31.20761599]
[1642361860225,1.92195306,148.38,148.36,31.45761599]
[1642361860425,1.92195306,148.38,148.37,42.0613259]
[1642361861525,1.92195306,148.38,148.37,6.0613259]
[1642361865526,1.92195306,148.38,148.37,6.3113259]
[1642361865725,1.92195306,148.38,148.37,48.3113259]
[1642361866426,1.92195306,148.4,148.37,48.3113259]
[1642361867024,1.2492057,148.42,148.37,48.3113259]
[1642361867025,1.92195306,148.41,148.37,48.3113259]
[1642361867225,1.92195306,148.41,148.37,6.3113259]
[1642361870827,3.17115876,148.42,148.37,6.3113259]
[1642361871028,3.17115876,148.42,148.37,29.8880259]
[1642361876234,1.2492057,148.42,148.37,29.8880259]
[1642361880739,1.92195306,148.43,148.37,29.8880259]
[1642361880740,1.92195306,148.43,148.39,36.49171212]
[1642361880939,1.92195306,148.43,148.39,36.74171212]
[1642361881840,1.92195306,148.44,148.39,36.74171212]
[1642361882043,12.66391997,148.44,148.39,36.49171212]
[1642361882244,12.91391997,148.44,148.39,36.49171212]
[1642361882443,2.17195306,148.44,148.39,36.49171212]
[1642361882642,1.92195306,148.43,148.39,36.49171212]
[1642361883241,2.17195306,148.43,148.39,36.49171212]
[1642361883540,1.92195306,148.43,148.39,36.49171212]
[1642361884144,1.92195306,148.42,148.39,36.49171212]
[1642361884840,1.92195306,148.43,148.39,36.49171212]
[1642361887542,1.92195306,148.42,148.39,36.49171212]
[1642361888144,1.92195306,148.43,148.39,36.49171212]
[1642361888842,1.92195306,148.42,148.39,36.49171212]
[1642361889242,1.92195306,148.42,148.4,6.0613259]
[1642361889646,1.92195306,148.42,148.39,36.49171212]
[1642361890549,1.92195306,148.42,148.4,6.0613259]
[1642361891549,1.92195306,148.42,148.39,36.49171212]
[1642361891750,1.92195306,148.43,148.39,36.49171212]
[1642361891963,1.92195306,148.43,148.4,3.02912593]
[1642361893476,1.92195306,148.43,148.41,3.03219997]
[1642361893878,1.92195306,148.43,148.4,3.02912593]
[1642361894077,2.17195306,148.43,148.4,3.02912593]
[1642361894579,1.92195306,148.42,148.4,3.02912593]
[1642361894978,1.92195306,148.42,148.41,3.03219997]
[1642361904095,1.92195306,148.42,148.4,3.02912593]
[1642361904292,1.92195306,148.42,148.4,6.0613259]
[1642361907996,7.92195306,148.42,148.4,6.0613259]
[1642361908599,7.92195306,148.42,148.39,36.49171212]
[1642361908800,7.92195306,148.42,148.4,6.0613259]
[1642361909699,7.92195306,148.42,148.4,3.02912593]
[1642361910102,7.92195306,148.42,148.39,36.49171212]
[1642361912028,7.92195306,148.42,148.39,36.74171212]
[1642361913731,7.92195306,148.42,148.39,36.49171212]
[1642361914133,7.92195306,148.42,148.39,36.74171212]
[1642361915536,7.92195306,148.42,148.4,6.0613259]
[1642361917034,7.92195306,148.42,148.39,36.49171212]
[1642361917235,7.92195306,148.42,148.4,6.0613259]
[1642361919947,7.92195306,148.42,148.39,36.49171212]
[1642361920150,7.92195306,148.42,148.4,6.0613259]
[1642361922751,22.6637,148.45,148.4,6.0613259]
[1642361922952,0.25,148.45,148.4,6.0613259]
[1642361923151,4.91492254,148.46,148.4,6.3113259]
[1642361923550,4.91492254,148.46,148.4,29.8856259]
[1642361924354,5.16492254,148.46,148.4,29.8856259]
[1642361925153,1.46395712,148.46,148.4,29.8856259]
[1642361925754,1.21395712,148.46,148.4,29.8856259]
[1642361933460,1.21395712,148.46,148.4,34.1826259]
[1642361933960,1.21395712,148.46,148.4,109.4326259]
[1642361934562,3.70096542,148.5,148.4,109.4326259]
[1642361934761,3.70096542,148.5,148.4,110.64165855]
[1642361934962,3.95096542,148.5,148.4,109.4326259]
[1642361935362,0.25,148.5,148.4,109.4326259]
[1642361935864,28.77146542,148.52,148.4,109.4326259]
[1642361936566,28.77146542,148.52,148.4,119.5370259]
[1642361937665,28.77146542,148.52,148.4,125.5370259]
[1642361937863,28.77146542,148.52,148.4,119.5370259]
[1642361938788,29.93020362,148.52,148.4,119.5370259]
[1642361938988,29.93020362,148.52,148.4,125.5370259]
[1642361939389,29.93020362,148.52,148.4,119.5370259]
[1642361939790,29.93020362,148.52,148.4,125.5370259]
[1642361939990,29.93020362,148.52,148.4,126.74605855]
[1642361940891,80.23028475,148.52,148.4,125.5370259]
[1642361942097,80.23028475,148.52,148.4,126.74605855]
[1642361942592,76.52931933,148.52,148.4,126.74605855]
[1642361944894,76.52931933,148.52,148.4,125.5370259]
[1642361945394,80.23028475,148.52,148.4,125.5370259]
[1642361947700,80.23028475,148.52,148.4,126.74605855]
[1642361949001,86.63401933,148.52,148.4,126.74605855]
[1642361949499,90.33498475,148.52,148.4,126.74605855]
[1642361955706,90.33498475,148.52,148.4,125.5370259]
[1642361956109,90.33498475,148.52,148.42,26.50290465]
[1642361956410,90.33498475,148.52,148.43,23.3131]
[1642361956613,40.03490362,148.52,148.43,23.3131]
[1642361956810,40.03490362,148.52,148.43,96.7331]
[1642361957009,40.03490362,148.52,148.44,8.08]
[1642361957512,40.03490362,148.52,148.46,36.49171212]
[1642361962714,7.54287276,148.51,148.46,36.49171212]
[1642361962915,7.79287276,148.51,148.46,36.49171212]
[1642361963515,3.95096542,148.51,148.46,36.49171212]
[1642361969719,0.00096542,148.51,148.47,67.17]
[1642361969921,0.00096542,148.51,148.49,67.17]
[1642361970121,0.00096542,148.51,148.5,45.08]
[1642361970321,0.00096542,148.51,148.5,118.3113259]
[1642361970520,0.00096542,148.51,148.5,118.5613259]
[1642361970729,5.72961448,148.55,148.5,81.5613259]
[1642361970922,41.02904213,148.57,148.51,26.50290465]
[1642361971423,24.4703,148.59,148.51,93.92290465]
[1642361971621,24.4703,148.59,148.52,24.1503]
[1642361971820,24.4703,148.59,148.51,26.75290465]
[1642361971821,24.7203,148.59,148.51,26.75290465]
[1642361972020,24.4703,148.59,148.51,26.75290465]
[1642361972421,24.4703,148.59,148.51,93.92290465]
[1642361972620,10.0993,148.6,148.51,93.92290465]
[1642361972826,5.72961448,148.63,148.53,67.17]
[1642361973021,48.8422,148.64,148.55,67.17]
[1642361973223,48.8422,148.64,148.54,90.5319]
[1642361973421,48.8422,148.64,148.54,90.7819]
[1642361973622,39.27843734,148.63,148.55,103.66171212]
[1642361975626,1.49634957,148.62,148.55,36.49171212]
[1642361975827,1.74634957,148.62,148.55,36.49171212]
[1642361984462,11.84404957,148.62,148.55,36.49171212]
[1642361986263,11.84404957,148.62,148.48,10.0987]
[1642361986466,24.7504,148.61,148.49,31.9283]
[1642361986663,10.0998,148.59,148.49,31.9283]
[1642361986864,18.1828,148.59,148.49,32.1783]
[1642361987166,18.92694589,148.58,148.5,36.26433321]
[1642361987363,19.17694589,148.58,148.5,36.26433321]
[1642361988164,26.20237883,148.58,148.5,36.26433321]
[1642361988565,10.1021,148.56,148.5,36.26433321]
[1642361988965,10.3521,148.56,148.5,36.26433321]
[1642361990969,0.25,148.56,148.5,36.26433321]
[1642361991370,7.27543294,148.58,148.5,36.26433321]
[1642361991569,0.25,148.58,148.5,36.26433321]
[1642361991969,7.0265859,148.58,148.5,36.26433321]
[1642361992272,10.1011,148.57,148.5,36.26433321]
[1642361992468,10.3511,148.57,148.5,36.26433321]
[1642362000308,9.8511,148.57,148.5,36.26433321]
[1642362004913,9.3511,148.57,148.5,36.26433321]
[1642362006514,9.31171914,148.56,148.5,36.26433321]
[1642362006716,10.1024,148.55,148.5,36.26433321]
[1642362006917,10.3524,148.55,148.5,36.26433321]
[1642362012222,10.101,148.57,148.5,36.26433321]
[1642362012424,5.72961448,148.61,148.5,36.51433321]
[1642362012625,5.72961448,148.61,148.51,24.0589]
[1642362012824,5.72961448,148.61,148.51,24.3089]
[1642362013528,13.93310389,148.61,148.51,24.3089]
[1642362014322,14.18310389,148.61,148.51,24.3089]
[1642362014723,13.93310389,148.61,148.51,24.3089]
[1642362015024,3.83490389,148.6,148.51,24.3089]
[1642362016227,4.08490389,148.6,148.51,24.3089]
[1642362017726,4.08490389,148.6,148.51,91.4789]
[1642362017926,0.25,148.6,148.51,24.3089]
[1642362018326,51.99245407,148.61,148.51,24.3089]
[1642362018626,10.3482,148.61,148.51,24.3089]
[1642362021331,5.72961448,148.64,148.53,67.17]
[1642362021530,5.72961448,148.64,148.55,67.17]
[1642362021730,5.72961448,148.64,148.56,8.08]
[1642362021930,5.72961448,148.64,148.57,67.17]
[1642362022131,5.72961448,148.64,148.58,8.08]
[1642362022332,38.08161358,148.69,148.59,14.885734]
[1642362022532,38.08161358,148.69,148.6,24.5946]
[1642362022932,38.08161358,148.69,148.6,24.8446]
[1642362024833,38.33161358,148.69,148.6,24.8446]
[1642362026739,48.42481358,148.69,148.6,24.5946]
[1642362029046,54.54881358,148.69,148.6,24.5946]
[1642362029446,121.71881358,148.69,148.6,24.5946]
[1642362030245,121.71881358,148.69,148.56,23.4063]
[1642362030446,121.71881358,148.69,148.57,24.6957]
[1642362030848,129.79881358,148.69,148.57,24.6957]
[1642362031050,129.79881358,148.69,148.57,70.9390536]
[1642362031453,70.98216198,148.68,148.57,70.9390536]
[1642362031655,10.0964,148.65,148.57,70.9390536]
[1642362031851,31.96831921,148.64,148.57,70.9390536]
[1642362032473,32.21831921,148.64,148.57,70.9390536]
[1642362033477,10.0964,148.63,148.57,70.9390536]
[1642362033678,10.0964,148.63,148.57,24.6957]
[1642362033876,10.3464,148.63,148.57,24.6957]
[1642362034576,10.0964,148.63,148.58,45.21501487]
[1642362035678,10.0964,148.63,148.57,24.6957]
[1642362035877,10.3464,148.63,148.57,24.6957]
[1642362036778,10.3464,148.63,148.58,46.48187476]
[1642362037982,10.3464,148.63,148.56,23.4063]
[1642362038984,10.3464,148.63,148.56,35.42113554]
[1642362039182,10.3464,148.63,148.51,31.1894]
[1642362039384,10.3464,148.63,148.53,0.25]
[1642362039983,17.37373655,148.63,148.53,0.25]
[1642362040383,17.37373655,148.63,148.52,45.40105237]
[1642362040583,17.37373655,148.63,148.53,24.6617]
[1642362040883,17.37373655,148.63,148.53,24.9117]
[1642362043426,10.1,148.59,148.53,24.6617]
[1642362043721,1.54608027,148.58,148.53,24.6617]
[1642362043921,1.54608027,148.58,148.5,24.3506]
[1642362044120,1.79608027,148.58,148.47,8.08]
[1642362044322,1.79608027,148.58,148.47,8.33]
[1642362044520,1.79608027,148.58,148.47,0.25]
[1642362044725,31.96831921,148.57,148.47,0.25]
[1642362044921,32.21831921,148.57,148.47,0.25]
[1642362045422,42.31931921,148.57,148.45,67.15243958]
[1642362045824,44.23078928,148.57,148.45,67.15243958]
[1642362046023,44.23078928,148.57,148.45,66.90243958]
[1642362047330,68.00288928,148.57,148.45,66.90243958]
[1642362047827,1.91147007,148.56,148.45,66.90243958]
[1642362048027,10.1028,148.53,148.45,66.90243958]
[1642362048429,10.3528,148.53,148.45,73.15243958]
[1642362050327,10.3528,148.53,148.45,67.15243958]
[1642362050529,10.2828,148.53,148.45,67.15243958]
[1642362053934,10.2828,148.53,148.45,66.90243958]
[1642362054535,16.2468,148.53,148.45,66.90243958]
[1642362056034,15.9968,148.53,148.45,66.90243958]
[1642362056236,10.0328,148.53,148.45,66.90243958]
[1642362057438,10.2828,148.53,148.45,66.90243958]
[1642362059338,10.2828,148.53,148.4,4.297]
[1642362059339,18.2308,148.53,148.4,4.297]
[1642362059540,1.70077588,148.52,148.4,4.297]
[1642362059739,10.1091,148.49,148.4,4.297]
[1642362059942,16.9711,148.49,148.4,4.297]
[1642362060140,18.92187588,148.49,148.4,4.297]
[1642362060340,10.3591,148.49,148.41,39.25533201]
[1642362060741,10.1091,148.49,148.41,39.25533201]
[1642362061740,10.1091,148.49,148.41,39.50533201]
[1642362062140,10.3591,148.49,148.41,39.50533201]
[1642362062545,10.3591,148.49,148.41,106.67533201]
[1642362063142,10.1041,148.51,148.42,8.08]
[1642362063340,10.1041,148.51,148.43,23.7551]
[1642362063541,10.1041,148.51,148.43,99.0051]
[1642362063742,10.1041,148.51,148.43,99.2551]
[1642362063941,10.1041,148.51,148.44,79.0647352]
[1642362064342,10.1041,148.51,148.44,79.3147352]
[1642362065743,10.3541,148.51,148.44,79.3147352]
[1642362066745,10.1026,148.53,148.45,75.25]
[1642362067047,1.91147007,148.55,148.45,99.1086]
[1642362067345,1.91147007,148.55,148.46,1.21244808]
[1642362067547,1.91147007,148.55,148.47,8.08]
[1642362067746,1.91147007,148.55,148.48,63.98013201]
[1642362067946,41.42739793,148.56,148.49,8.08]
[1642362068348,41.42739793,148.56,148.49,8.33]
[1642362068545,51.52789793,148.56,148.49,8.33]
[1642362069345,10.1005,148.56,148.49,8.33]
[1642362070648,10.3505,148.56,148.49,8.33]
[1642362070848,10.1005,148.56,148.49,8.33]
[1642362079455,10.1005,148.56,148.49,8.08]
[1642362079656,10.3505,148.56,148.49,8.08]
[1642362079855,10.3505,148.56,148.48,39.25533201]
[1642362080761,10.1029,148.53,148.48,39.25533201]
[1642362080961,10.3529,148.53,148.48,39.25533201]
[1642362082356,10.1029,148.53,148.48,39.50533201]
[1642362084899,10.1029,148.53,148.48,39.25533201]
[1642362087903,8.57759135,148.53,148.48,39.25533201]
[1642362088405,8.82759135,148.53,148.48,39.25533201]
[1642362090004,1.91147007,148.54,148.48,39.50533201]
[1642362090206,1.91147007,148.54,148.48,47.58533201]
[1642362090604,1.91147007,148.54,148.48,70.78553201]
[1642362091005,10.1014,148.55,148.48,70.78553201]
[1642362092609,12.01287007,148.55,148.48,70.78553201]
[1642362093608,10.1014,148.55,148.48,70.78553201]
[1642362094012,10.1014,148.55,148.48,70.53553201]
[1642362095014,12.01287007,148.55,148.48,70.53553201]
[1642362095312,12.01287007,148.55,148.48,70.78553201]
[1642362096346,12.26287007,148.55,148.48,70.78553201]
[1642362096947,12.01287007,148.55,148.48,70.78553201]
[1642362098846,12.26287007,148.55,148.48,70.78553201]
[1642362100052,30.51205893,148.54,148.48,70.53553201]
[1642362100249,30.51205893,148.54,148.48,39.25533201]
[1642362100451,30.76205893,148.54,148.48,39.25533201]
[1642362100953,32.673529,148.54,148.48,39.25533201]
[1642362102051,1.91147007,148.53,148.48,39.25533201]